[Event "Late-Titled-Tuesday-Blitz-October-17-2023"]
[Site "Chess.com"]
[Date "2023.10.17"]
[Round "10"]
[White "DryCounty"]
[Black "KaydenTroffChess"]
[Result "1-0"]
[WhiteElo "2690"]
[BlackElo "2810"]
[TimeControl "180+1"]
[EndTime "15:53:37 PDT"]
[Termination "DryCounty won on time"]

1. e4 {[%clk 0:03:00.9]} 1... c5 {[%clk 0:02:58.5]} 2. Nf3 {[%clk 0:03:00.5]}
2... g6 {[%clk 0:02:58.6]} 3. c4 {[%clk 0:02:59.7]} 3... Bg7 {[%clk 0:02:58.3]}
4. d4 {[%clk 0:02:59.8]} 4... cxd4 {[%clk 0:02:59.2]} 5. Nxd4 {[%clk 0:02:59.4]}
5... Qb6 {[%clk 0:02:59.8]} 6. Nb3 {[%clk 0:02:55.9]} 6... a5 {[%clk 0:02:59.8]}
7. Be3 {[%clk 0:02:53.4]} 7... Qb4+ {[%clk 0:02:59.6]} 8. Bd2 {[%clk 0:02:46]}
8... Qd6 {[%clk 0:02:59.3]} 9. Nc3 {[%clk 0:02:35.9]} 9... a4 {[%clk 0:02:58.4]}
10. c5 {[%clk 0:02:24]} 10... Qe6 {[%clk 0:02:46.7]} 11. Nc1 {[%clk 0:02:16.3]}
11... a3 {[%clk 0:02:42.3]} 12. b3 {[%clk 0:02:11]} 12... Nf6 {[%clk 0:02:30]}
13. Bc4 {[%clk 0:02:10.5]} 13... Qe5 {[%clk 0:02:27.3]} 14. Nd3 {[%clk
0:02:08.4]} 14... Qd4 {[%clk 0:02:12.5]} 15. O-O {[%clk 0:02:00.7]} 15... Nxe4
{[%clk 0:01:50.2]} 16. Nb5 {[%clk 0:01:27.7]} 16... Qxa1 {[%clk 0:01:46.7]} 17.
Qc2 {[%clk 0:00:57.2]} 17... Qxf1+ {[%clk 0:01:38.4]} 18. Kxf1 {[%clk
0:00:56.4]} 18... Nxd2+ {[%clk 0:01:39.1]} 19. Qxd2 {[%clk 0:00:56.2]} 19... O-O
{[%clk 0:01:39.6]} 20. Nc7 {[%clk 0:00:51.8]} 20... Ra7 {[%clk 0:01:39.8]} 21.
b4 {[%clk 0:00:43.9]} 21... d6 {[%clk 0:01:35.1]} 22. cxd6 {[%clk 0:00:37.2]}
22... exd6 {[%clk 0:01:34.5]} 23. Qe3 {[%clk 0:00:37.3]} 23... Nc6 {[%clk
0:01:32.7]} 24. b5 {[%clk 0:00:37.5]} 24... Nd4 {[%clk 0:01:32.5]} 25. Nd5
{[%clk 0:00:20.7]} 25... Be6 {[%clk 0:01:26]} 26. N3f4 {[%clk 0:00:19.1]} 26...
Ra4 {[%clk 0:01:21.1]} 27. Qd3 {[%clk 0:00:16.2]} 27... Bf5 {[%clk 0:01:18.3]}
28. Ne7+ {[%clk 0:00:11.7]} 28... Kh8 {[%clk 0:01:18.7]} 29. Nxf5 {[%clk
0:00:12]} 29... Nxf5 {[%clk 0:01:18.3]} 30. Nd5 {[%clk 0:00:10.4]} 30... Raa8
{[%clk 0:01:14.2]} 31. g3 {[%clk 0:00:09.5]} 31... Rac8 {[%clk 0:01:10.8]} 32.
Nb6 {[%clk 0:00:09.3]} 32... Rcd8 {[%clk 0:01:08.1]} 33. Bd5 {[%clk 0:00:08.9]}
33... Rfe8 {[%clk 0:00:42.8]} 34. Nc4 {[%clk 0:00:07.9]} 34... Re7 {[%clk
0:00:40.5]} 35. b6 {[%clk 0:00:07.4]} 35... Bd4 {[%clk 0:00:39.7]} 36. Qxa3
{[%clk 0:00:06.7]} 36... Kg7 {[%clk 0:00:36.3]} 37. Qd3 {[%clk 0:00:06.2]} 37...
Bc5 {[%clk 0:00:36]} 38. a4 {[%clk 0:00:04.7]} 38... Rde8 {[%clk 0:00:33.4]} 39.
a5 {[%clk 0:00:04.3]} 39... Re1+ {[%clk 0:00:33.5]} 40. Kg2 {[%clk 0:00:04.9]}
40... R8e2 {[%clk 0:00:33.4]} 41. Qc3+ {[%clk 0:00:03.7]} 41... Bd4 {[%clk
0:00:32.9]} 42. Qf3 {[%clk 0:00:02]} 42... Rxf2+ {[%clk 0:00:31.5]} 43. Qxf2
{[%clk 0:00:02.2]} 43... Bxf2 {[%clk 0:00:32.4]} 44. Kxf2 {[%clk 0:00:02.7]}
44... Rc1 {[%clk 0:00:24.4]} 45. Bxb7 {[%clk 0:00:02.8]} 45... Rc2+ {[%clk
0:00:18]} 46. Ke1 {[%clk 0:00:02.3]} 46... Rxc4 {[%clk 0:00:18.1]} 47. a6 {[%clk
0:00:02.6]} 47... Ra4 {[%clk 0:00:14.2]} 48. a7 {[%clk 0:00:02.8]} 48... Ne3
{[%clk 0:00:14.2]} 49. a8=Q {[%clk 0:00:03.1]} 49... Rxa8 {[%clk 0:00:14.2]} 50.
Bxa8 {[%clk 0:00:03.9]} 50... Nc2+ {[%clk 0:00:14.7]} 51. Kd2 {[%clk 0:00:03.7]}
51... Nb4 {[%clk 0:00:15.6]} 52. Be4 {[%clk 0:00:03]} 52... Na6 {[%clk
0:00:15.3]} 53. Kc3 {[%clk 0:00:02.4]} 53... Kf6 {[%clk 0:00:15.6]} 54. Kc4
{[%clk 0:00:03]} 54... Ke5 {[%clk 0:00:14.8]} 55. Bg2 {[%clk 0:00:02.8]} 55...
f5 {[%clk 0:00:14.9]} 56. Kb5 {[%clk 0:00:03.3]} 56... Nb8 {[%clk 0:00:15.3]}
57. b7 {[%clk 0:00:03.8]} 57... g5 {[%clk 0:00:14.1]} 58. Kb6 {[%clk 0:00:03.9]}
58... d5 {[%clk 0:00:14.7]} 59. Bf1 {[%clk 0:00:03.8]} 59... Kd6 {[%clk
0:00:14]} 60. Bd3 {[%clk 0:00:02.9]} 60... f4 {[%clk 0:00:14]} 61. gxf4 {[%clk
0:00:02.8]} 61... gxf4 {[%clk 0:00:14.9]} 62. Bxh7 {[%clk 0:00:02.9]} 62... Nd7+
{[%clk 0:00:15]} 63. Ka7 {[%clk 0:00:02.2]} 63... Ke5 {[%clk 0:00:11.7]} 64. Bd3
{[%clk 0:00:03.1]} 64... Kd4 {[%clk 0:00:10.2]} 65. Bb5 {[%clk 0:00:03.6]} 65...
Ne5 {[%clk 0:00:06.5]} 66. b8=Q {[%clk 0:00:03.3]} 66... f3 {[%clk 0:00:07.4]}
67. Qb6+ {[%clk 0:00:03]} 67... Ke4 {[%clk 0:00:07.4]} 68. Qf2 {[%clk
0:00:02.9]} 68... Ng4 {[%clk 0:00:06.5]} 69. Qg3 {[%clk 0:00:03.1]} 69... Ne5
{[%clk 0:00:06]} 70. Qh4+ {[%clk 0:00:02.9]} 70... Ke3 {[%clk 0:00:06.3]} 71.
Qg5+ {[%clk 0:00:02.5]} 71... Ke4 {[%clk 0:00:06.6]} 72. Qg3 {[%clk 0:00:02.8]}
72... d4 {[%clk 0:00:06.8]} 73. Qf2 {[%clk 0:00:02.7]} 73... d3 {[%clk
0:00:06.6]} 74. Bxd3+ {[%clk 0:00:03.2]} 74... Nxd3 {[%clk 0:00:06.7]} 75. Qf1
{[%clk 0:00:02.7]} 75... Ke3 {[%clk 0:00:07]} 76. h4 {[%clk 0:00:03.1]} 76...
Nf4 {[%clk 0:00:07.4]} 77. Qe1+ {[%clk 0:00:02.4]} 77... Ne2 {[%clk 0:00:07.2]}
78. h5 {[%clk 0:00:01.7]} 78... f2 {[%clk 0:00:07.8]} 79. Qxf2+ {[%clk
0:00:01.3]} 79... Kxf2 {[%clk 0:00:07.6]} 80. h6 {[%clk 0:00:01.9]} 80... Nc3
{[%clk 0:00:06.5]} 81. h7 {[%clk 0:00:02.1]} 81... Nb5+ {[%clk 0:00:07.2]} 82.
Kb6 {[%clk 0:00:02.4]} 82... Nd6 {[%clk 0:00:07.6]} 83. h8=Q {[%clk 0:00:03.3]}
83... Nc4+ {[%clk 0:00:08]} 84. Kc7 {[%clk 0:00:02.9]} 84... Ne3 {[%clk
0:00:08.9]} 85. Qf6+ {[%clk 0:00:03]} 85... Ke2 {[%clk 0:00:09.8]} 86. Qe6
{[%clk 0:00:03.6]} 86... Kd3 {[%clk 0:00:10.1]} 87. Kd6 {[%clk 0:00:03.9]} 87...
Nc4+ {[%clk 0:00:10.8]} 88. Kd5 {[%clk 0:00:03.7]} 88... Ne3+ {[%clk 0:00:11.7]}
89. Kc5 {[%clk 0:00:04.1]} 89... Nc2 {[%clk 0:00:08.1]} 90. Qe5 {[%clk
0:00:03.9]} 90... Ne3 {[%clk 0:00:06.9]} 91. Qd4+ {[%clk 0:00:04.2]} 91... Ke2
{[%clk 0:00:07.5]} 92. Qe4 {[%clk 0:00:04.6]} 92... Kd2 {[%clk 0:00:07.4]} 93.
Kd4 {[%clk 0:00:04.9]} 93... Nc2+ {[%clk 0:00:07.8]} 94. Kc4 {[%clk 0:00:05.2]}
94... Ne3+ {[%clk 0:00:08.7]} 95. Kb3 {[%clk 0:00:05.3]} 95... Ke2 {[%clk
0:00:08.8]} 96. Kc3 {[%clk 0:00:05.7]} 96... Kf2 {[%clk 0:00:08.3]} 97. Kd3
{[%clk 0:00:06]} 97... Nf1 {[%clk 0:00:09.2]} 98. Qf4+ {[%clk 0:00:06]} 98...
Kg2 {[%clk 0:00:09.4]} 99. Ke2 {[%clk 0:00:06.3]} 99... Ng3+ {[%clk 0:00:09.9]}
100. Ke1 {[%clk 0:00:06.4]} 100... Kh3 {[%clk 0:00:09.5]} 101. Kf2 {[%clk
0:00:06.7]} 101... Ne2 {[%clk 0:00:02.5]} 102. Kxe2 {[%clk 0:00:06.4]} 1-0

[Event "Late-Titled-Tuesday-Blitz-October-17-2023"]
[Site "Chess.com"]
[Date "2023.10.17"]
[Round "11"]
[White "Byniolus"]
[Black "Kale36"]
[Result "1/2-1/2"]
[WhiteElo "2747"]
[BlackElo "2356"]
[TimeControl "180+1"]
[EndTime "15:57:17 PDT"]
[Termination "Game drawn by agreement"]

1. d4 {[%clk 0:03:00.9]} 1... Nc6 {[%clk 0:02:59]} 2. Nf3 {[%clk 0:03:01.8]}
2... d6 {[%clk 0:02:58.8]} 3. Bf4 {[%clk 0:03:01.6]} 3... Bg4 {[%clk 0:02:58.5]}
4. Nbd2 {[%clk 0:03:01.5]} 4... f6 {[%clk 0:02:57]} 5. h3 {[%clk 0:02:59.8]}
5... Bh5 {[%clk 0:02:55]} 6. d5 {[%clk 0:02:59.4]} 6... Ne5 {[%clk 0:02:54.9]}
7. c4 {[%clk 0:02:59.6]} 7... c5 {[%clk 0:02:43.4]} 8. dxc6 {[%clk 0:02:58.4]}
8... Nxc6 {[%clk 0:02:42.3]} 9. Qb3 {[%clk 0:02:57]} 9... Qc7 {[%clk 0:02:40]}
10. e3 {[%clk 0:02:55.6]} 10... e5 {[%clk 0:02:37.1]} 11. Bh2 {[%clk 0:02:55.8]}
11... Bf7 {[%clk 0:02:34.5]} 12. Be2 {[%clk 0:02:55.3]} 12... g6 {[%clk
0:02:34.7]} 13. O-O {[%clk 0:02:55.6]} 13... Bg7 {[%clk 0:02:35.2]} 14. Rac1
{[%clk 0:02:56.3]} 14... Nge7 {[%clk 0:02:35]} 15. Rfd1 {[%clk 0:02:57.2]} 15...
O-O {[%clk 0:02:34.7]} 16. Ne4 {[%clk 0:02:58.1]} 16... Rfd8 {[%clk 0:02:33.4]}
17. Nc3 {[%clk 0:02:57.3]} 17... Na5 {[%clk 0:02:28.6]} 18. Qb4 {[%clk
0:02:57.5]} 18... Nec6 {[%clk 0:02:19.8]} 19. Qa4 {[%clk 0:02:53.1]} 19... Be8
{[%clk 0:02:15.7]} 20. Nb5 {[%clk 0:02:48.9]} 20... Qb6 {[%clk 0:02:09.7]} 21.
b4 {[%clk 0:02:36.5]} 21... a6 {[%clk 0:02:09]} 22. bxa5 {[%clk 0:02:30.5]}
22... axb5 {[%clk 0:02:07.5]} 23. axb6 {[%clk 0:02:23.8]} 1/2-1/2

[Event "Late-Titled-Tuesday-Blitz-October-17-2023"]
[Site "Chess.com"]
[Date "2023.10.17"]
[Round "11"]
[White "ToddBryant"]
[Black "icy"]
[Result "0-1"]
[WhiteElo "2309"]
[BlackElo "2397"]
[TimeControl "180+1"]
[EndTime "15:57:44 PDT"]
[Termination "icy won by resignation"]

1. e4 {[%clk 0:03:00.9]} 1... d6 {[%clk 0:02:57.2]} 2. d4 {[%clk 0:03:00.4]}
2... e5 {[%clk 0:02:56.6]} 3. Nf3 {[%clk 0:02:58.6]} 3... Bg4 {[%clk 0:02:55.4]}
4. dxe5 {[%clk 0:02:57.5]} 4... Bxf3 {[%clk 0:02:55.8]} 5. Qxf3 {[%clk
0:02:58.4]} 5... dxe5 {[%clk 0:02:55.6]} 6. Bc4 {[%clk 0:02:56.6]} 6... Qf6
{[%clk 0:02:55.8]} 7. Qb3 {[%clk 0:02:55.2]} 7... Nd7 {[%clk 0:02:56]} 8. Nc3
{[%clk 0:02:53.6]} 8... Nc5 {[%clk 0:02:56]} 9. Nd5 {[%clk 0:02:21.6]} 9... Nxb3
{[%clk 0:02:55.7]} 10. Nxf6+ {[%clk 0:02:21.2]} 10... Nxf6 {[%clk 0:02:56.6]}
11. Bxb3 {[%clk 0:02:10.8]} 11... Nxe4 {[%clk 0:02:57.2]} 12. O-O {[%clk
0:02:11.1]} 12... Bc5 {[%clk 0:02:52.7]} 13. Be3 {[%clk 0:02:00]} 13... Bxe3
{[%clk 0:02:50.6]} 14. fxe3 {[%clk 0:02:00.9]} 14... f6 {[%clk 0:02:46.2]} 15.
Rad1 {[%clk 0:01:50.3]} 15... Ke7 {[%clk 0:02:44.4]} 16. Bd5 {[%clk 0:01:44.3]}
16... Nd6 {[%clk 0:02:43.4]} 17. b3 {[%clk 0:01:38.4]} 17... c6 {[%clk
0:02:41.1]} 18. Bf3 {[%clk 0:01:38.7]} 18... Rhd8 {[%clk 0:02:37.8]} 19. c4
{[%clk 0:01:36.6]} 19... Nf7 {[%clk 0:02:33.6]} 20. Be4 {[%clk 0:01:32]} 20...
g6 {[%clk 0:02:28.8]} 21. g4 {[%clk 0:01:32]} 21... Ng5 {[%clk 0:02:26.5]} 22.
Bc2 {[%clk 0:01:24]} 22... Rxd1 {[%clk 0:02:22.8]} 23. Rxd1 {[%clk 0:01:24.9]}
23... Rd8 {[%clk 0:02:23]} 24. Rxd8 {[%clk 0:01:18.5]} 24... Kxd8 {[%clk
0:02:23.9]} 25. h4 {[%clk 0:01:14.5]} 25... Nf3+ {[%clk 0:02:23.6]} 26. Kg2
{[%clk 0:01:15.2]} 26... Ne1+ {[%clk 0:02:23.5]} 0-1

[Event "Late-Titled-Tuesday-Blitz-October-17-2023"]
[Site "Chess.com"]
[Date "2023.10.17"]
[Round "11"]
[White "Eloist"]
[Black "GoltsevDmitry2000"]
[Result "0-1"]
[WhiteElo "2464"]
[BlackElo "2655"]
[TimeControl "180+1"]
[EndTime "15:57:46 PDT"]
[Termination "GoltsevDmitry2000 won by checkmate"]

1. e4 {[%clk 0:03:00.9]} 1... e6 {[%clk 0:03:00.1]} 2. d4 {[%clk 0:03:00.2]}
2... d5 {[%clk 0:03:01]} 3. Nd2 {[%clk 0:03:00.2]} 3... c5 {[%clk 0:03:00.9]} 4.
Ngf3 {[%clk 0:02:59.7]} 4... Nf6 {[%clk 0:03:00.5]} 5. exd5 {[%clk 0:02:52.5]}
5... exd5 {[%clk 0:03:00.4]} 6. dxc5 {[%clk 0:02:47.1]} 6... Bxc5 {[%clk
0:02:59.5]} 7. Nb3 {[%clk 0:02:46.5]} 7... Bb6 {[%clk 0:02:59.4]} 8. Bb5+ {[%clk
0:02:44.3]} 8... Nc6 {[%clk 0:02:58.8]} 9. O-O {[%clk 0:02:33.3]} 9... O-O
{[%clk 0:02:58.3]} 10. Re1 {[%clk 0:02:33.2]} 10... Ng4 {[%clk 0:02:53.6]} 11.
Re2 {[%clk 0:02:10.2]} 11... Re8 {[%clk 0:02:52.7]} 12. Bg5 {[%clk 0:01:33]}
12... f6 {[%clk 0:02:29.1]} 13. Bh4 {[%clk 0:01:32.6]} 13... Rxe2 {[%clk
0:02:23.2]} 14. Qxe2 {[%clk 0:01:32]} 14... a6 {[%clk 0:02:23.3]} 15. Bxc6
{[%clk 0:01:17.5]} 15... bxc6 {[%clk 0:02:24.2]} 16. c4 {[%clk 0:01:11.9]} 16...
Bf5 {[%clk 0:02:13.8]} 17. Nfd4 {[%clk 0:01:06.2]} 17... Bd7 {[%clk 0:02:08.7]}
18. Nxc6 {[%clk 0:01:04.1]} 18... Qc7 {[%clk 0:01:59.9]} 19. Ne7+ {[%clk
0:01:00.3]} 19... Kf7 {[%clk 0:01:59.5]} 20. Nxd5 {[%clk 0:01:00.1]} 20... Qxh2+
{[%clk 0:01:59]} 21. Kf1 {[%clk 0:00:59.7]} 21... Qh1# {[%clk 0:01:59.6]} 0-1

[Event "Late-Titled-Tuesday-Blitz-October-17-2023"]
[Site "Chess.com"]
[Date "2023.10.17"]
[Round "11"]
[White "Mikasinski"]
[Black "aNaartjieZA"]
[Result "1-0"]
[WhiteElo "2692"]
[BlackElo "2555"]
[TimeControl "180+1"]
[EndTime "15:58:53 PDT"]
[Termination "Mikasinski won by resignation"]

1. e4 {[%clk 0:02:50.4]} 1... e6 {[%clk 0:02:59.8]} 2. d4 {[%clk 0:02:50.2]}
2... d5 {[%clk 0:03:00]} 3. Nd2 {[%clk 0:02:50.5]} 3... Nf6 {[%clk 0:02:59.8]}
4. Bd3 {[%clk 0:02:46.2]} 4... c5 {[%clk 0:02:59.4]} 5. exd5 {[%clk 0:02:46]}
5... exd5 {[%clk 0:02:56.6]} 6. dxc5 {[%clk 0:02:46.2]} 6... Nc6 {[%clk
0:02:54.8]} 7. Ngf3 {[%clk 0:02:45.9]} 7... Bxc5 {[%clk 0:02:54.6]} 8. O-O
{[%clk 0:02:45.7]} 8... O-O {[%clk 0:02:54.9]} 9. Nb3 {[%clk 0:02:40.2]} 9...
Bd6 {[%clk 0:02:52.8]} 10. h3 {[%clk 0:02:40.7]} 10... h6 {[%clk 0:02:52]} 11.
c3 {[%clk 0:02:40.8]} 11... Re8 {[%clk 0:02:51.6]} 12. Bc2 {[%clk 0:02:41]}
12... Qe7 {[%clk 0:02:48.2]} 13. Re1 {[%clk 0:02:40]} 13... Be6 {[%clk
0:02:47.9]} 14. Nbd4 {[%clk 0:02:40]} 14... Rad8 {[%clk 0:02:45.5]} 15. Bf5
{[%clk 0:02:34.7]} 15... Qd7 {[%clk 0:02:44.4]} 16. Nxe6 {[%clk 0:02:23.7]}
16... fxe6 {[%clk 0:02:44.4]} 17. Bg6 {[%clk 0:02:24.4]} 17... Rf8 {[%clk
0:02:44.8]} 18. Qc2 {[%clk 0:02:19.8]} 18... Bb8 {[%clk 0:02:35]} 19. Be3 {[%clk
0:02:13.7]} 19... b6 {[%clk 0:02:33.7]} 20. Rad1 {[%clk 0:02:13.5]} 20... Qc7
{[%clk 0:02:32.6]} 21. Bd4 {[%clk 0:02:09.4]} 21... Nxd4 {[%clk 0:02:29.4]} 22.
cxd4 {[%clk 0:02:09]} 22... Qd6 {[%clk 0:02:19.7]} 23. Ne5 {[%clk 0:02:09.1]}
23... Rc8 {[%clk 0:02:11.8]} 24. Bf7+ {[%clk 0:02:07.6]} 24... Rxf7 {[%clk
0:02:04.9]} 25. Qxc8+ {[%clk 0:02:07.5]} 25... Rf8 {[%clk 0:02:05.2]} 26. Qc6
{[%clk 0:02:05.3]} 26... Ne4 {[%clk 0:02:01.2]} 27. Qxd6 {[%clk 0:02:01.3]}
27... Bxd6 {[%clk 0:02:01]} 28. f3 {[%clk 0:02:01.1]} 28... Bxe5 {[%clk
0:01:51.9]} 29. fxe4 {[%clk 0:01:56.8]} 29... Bg3 {[%clk 0:01:51.6]} 30. Rf1
{[%clk 0:01:54.9]} 30... dxe4 {[%clk 0:01:46.5]} 31. Rxf8+ {[%clk 0:01:54.9]}
31... Kxf8 {[%clk 0:01:46.1]} 32. Kf1 {[%clk 0:01:55.5]} 32... Ke7 {[%clk
0:01:45.2]} 33. Ke2 {[%clk 0:01:55.5]} 33... Bf4 {[%clk 0:01:45]} 34. g3 {[%clk
0:01:44.7]} 34... Bxg3 {[%clk 0:01:43.1]} 35. Rg1 {[%clk 0:01:42.4]} 35... Bf4
{[%clk 0:01:38.9]} 36. Rxg7+ {[%clk 0:01:41.6]} 36... Kd6 {[%clk 0:01:39.2]} 37.
Rxa7 {[%clk 0:01:41.8]} 37... Kd5 {[%clk 0:01:39]} 38. Ra4 {[%clk 0:01:40.7]}
38... Bg5 {[%clk 0:01:34.6]} 39. Rb4 {[%clk 0:01:39.5]} 39... Bd8 {[%clk
0:01:34.3]} 40. h4 {[%clk 0:01:33.2]} 40... Bxh4 {[%clk 0:01:23.4]} 41. Rxb6
{[%clk 0:01:31.1]} 41... Bg5 {[%clk 0:01:22]} 42. a4 {[%clk 0:01:29.6]} 42... h5
{[%clk 0:01:21.8]} 43. Rb5+ {[%clk 0:01:30.1]} 1-0

[Event "Late-Titled-Tuesday-Blitz-October-17-2023"]
[Site "Chess.com"]
[Date "2023.10.17"]
[Round "11"]
[White "RichardShtivelband"]
[Black "nochewycandy"]
[Result "0-1"]
[WhiteElo "2234"]
[BlackElo "2742"]
[TimeControl "180+1"]
[EndTime "15:59:23 PDT"]
[Termination "nochewycandy won by resignation"]

1. d4 {[%clk 0:02:59.4]} 1... g6 {[%clk 0:02:58]} 2. e4 {[%clk 0:02:58.8]} 2...
Bg7 {[%clk 0:02:58.1]} 3. Nc3 {[%clk 0:02:58.5]} 3... d6 {[%clk 0:02:58.7]} 4.
Nf3 {[%clk 0:02:57.1]} 4... a6 {[%clk 0:02:58.5]} 5. Be3 {[%clk 0:02:54.8]} 5...
b5 {[%clk 0:02:58.4]} 6. e5 {[%clk 0:02:54.4]} 6... Bb7 {[%clk 0:02:57.6]} 7.
Bd3 {[%clk 0:02:53]} 7... e6 {[%clk 0:02:55.1]} 8. Ne4 {[%clk 0:02:51.8]} 8...
Bxe4 {[%clk 0:02:54]} 9. Bxe4 {[%clk 0:02:51.6]} 9... d5 {[%clk 0:02:54.9]} 10.
Bd3 {[%clk 0:02:51.5]} 10... Nd7 {[%clk 0:02:47.2]} 11. a4 {[%clk 0:02:50.4]}
11... b4 {[%clk 0:02:45.3]} 12. c4 {[%clk 0:02:47.6]} 12... dxc4 {[%clk
0:02:40.6]} 13. Bxc4 {[%clk 0:02:47.2]} 13... Nb6 {[%clk 0:02:40.7]} 14. Qb3
{[%clk 0:02:40.9]} 14... Ne7 {[%clk 0:02:31.9]} 15. Qxb4 {[%clk 0:02:32.1]}
15... O-O {[%clk 0:02:31.4]} 16. a5 {[%clk 0:02:29.8]} 16... Nxc4 {[%clk
0:02:28]} 17. Qxc4 {[%clk 0:02:30]} 17... Qd7 {[%clk 0:02:23.4]} 18. b4 {[%clk
0:02:28.3]} 18... Rfb8 {[%clk 0:02:22]} 19. O-O {[%clk 0:02:26.4]} 19... Rb5
{[%clk 0:02:21]} 20. Rac1 {[%clk 0:02:22.6]} 20... c6 {[%clk 0:02:21]} 21. Ng5
{[%clk 0:02:15.8]} 21... Rab8 {[%clk 0:02:17.2]} 22. Bd2 {[%clk 0:02:11.1]}
22... Bxe5 {[%clk 0:01:52.5]} 23. dxe5 {[%clk 0:01:57]} 23... Qxd2 {[%clk
0:01:52.8]} 24. Ne4 {[%clk 0:01:54]} 24... Qxb4 {[%clk 0:01:53.1]} 25. Nf6+
{[%clk 0:01:52.9]} 25... Kg7 {[%clk 0:01:53.2]} 26. Qe2 {[%clk 0:01:45.5]} 26...
Qxa5 {[%clk 0:01:33]} 27. f4 {[%clk 0:01:44.1]} 27... Rb2 {[%clk 0:01:29.2]} 28.
Qg4 {[%clk 0:01:43.5]} 28... Nf5 {[%clk 0:01:14.1]} 29. Qg5 {[%clk 0:01:14.5]}
29... h6 {[%clk 0:01:00.4]} 30. Nh5+ {[%clk 0:01:14.2]} 30... Kh7 {[%clk
0:01:01]} 31. Qf6 {[%clk 0:01:13.7]} 31... gxh5 {[%clk 0:00:59.1]} 32. Qxf7+
{[%clk 0:01:13.3]} 32... Ng7 {[%clk 0:00:59.8]} 33. Rxc6 {[%clk 0:01:06.4]}
33... Qd2 {[%clk 0:00:50.9]} 0-1

[Event "Late-Titled-Tuesday-Blitz-October-17-2023"]
[Site "Chess.com"]
[Date "2023.10.17"]
[Round "11"]
[White "lamomiajunior"]
[Black "borocotoajua"]
[Result "1-0"]
[WhiteElo "2732"]
[BlackElo "2574"]
[TimeControl "180+1"]
[EndTime "15:59:23 PDT"]
[Termination "lamomiajunior won on time"]

1. d4 {[%clk 0:03:00.9]} 1... Nf6 {[%clk 0:02:53.3]} 2. c4 {[%clk 0:03:01.1]}
2... g6 {[%clk 0:02:53.7]} 3. Nc3 {[%clk 0:03:01.3]} 3... d5 {[%clk 0:02:53.2]}
4. Nf3 {[%clk 0:03:01]} 4... Bg7 {[%clk 0:02:52.7]} 5. h4 {[%clk 0:03:01.7]}
5... h5 {[%clk 0:02:51.1]} 6. cxd5 {[%clk 0:02:57.4]} 6... Nxd5 {[%clk 0:02:52]}
7. e4 {[%clk 0:02:57.9]} 7... Nxc3 {[%clk 0:02:51.3]} 8. bxc3 {[%clk 0:02:58.8]}
8... c5 {[%clk 0:02:49.8]} 9. Be3 {[%clk 0:02:58.1]} 9... Nc6 {[%clk 0:02:46.8]}
10. Be2 {[%clk 0:02:56.2]} 10... Bg4 {[%clk 0:02:44.9]} 11. d5 {[%clk
0:02:46.2]} 11... Bxc3+ {[%clk 0:02:29.8]} 12. Kf1 {[%clk 0:02:44.7]} 12... Bxf3
{[%clk 0:01:53.9]} 13. gxf3 {[%clk 0:02:44.3]} 13... Nd4 {[%clk 0:01:44.2]} 14.
Rc1 {[%clk 0:02:43.8]} 14... Qa5 {[%clk 0:01:34.8]} 15. Qd3 {[%clk 0:02:43.8]}
15... Nxe2 {[%clk 0:01:30.4]} 16. Kxe2 {[%clk 0:02:42.6]} 16... Bd4 {[%clk
0:01:18.9]} 17. Bxd4 {[%clk 0:02:41.1]} 17... cxd4 {[%clk 0:01:19.8]} 18. Qxd4
{[%clk 0:02:41.4]} 18... Qxa2+ {[%clk 0:01:17.5]} 19. Ke3 {[%clk 0:02:41.5]}
19... O-O {[%clk 0:01:14.6]} 20. Rhg1 {[%clk 0:02:41.2]} 20... Rac8 {[%clk
0:01:11.4]} 21. Ra1 {[%clk 0:02:19.8]} 21... Qb3+ {[%clk 0:00:56.6]} 22. Kf4
{[%clk 0:02:19.1]} 22... Rc3 {[%clk 0:00:48.3]} 23. Rg3 {[%clk 0:02:18.1]} 23...
Qb2 {[%clk 0:00:48.1]} 24. Rd1 {[%clk 0:02:10.2]} 24... Rfc8 {[%clk 0:00:39.4]}
25. Kg5 {[%clk 0:02:05.3]} 25... Kh7 {[%clk 0:00:34.9]} 26. d6 {[%clk
0:02:01.8]} 26... Qb5+ {[%clk 0:00:27.7]} 27. Kf4 {[%clk 0:01:55]} 27... f6
{[%clk 0:00:22.6]} 28. dxe7 {[%clk 0:01:49.3]} 28... R8c5 {[%clk 0:00:10.1]} 29.
Qxf6 {[%clk 0:01:46.7]} 29... Rf5+ {[%clk 0:00:05.5]} 30. exf5 {[%clk
0:01:47.1]} 30... Rc4+ {[%clk 0:00:01.3]} 31. Kg5 {[%clk 0:01:47.5]} 1-0

[Event "Late-Titled-Tuesday-Blitz-October-17-2023"]
[Site "Chess.com"]
[Date "2023.10.17"]
[Round "11"]
[White "zverr1"]
[Black "gahryman"]
[Result "0-1"]
[WhiteElo "2518"]
[BlackElo "2685"]
[TimeControl "180+1"]
[EndTime "16:00:02 PDT"]
[Termination "gahryman won by resignation"]

1. e4 {[%clk 0:02:59]} 1... c5 {[%clk 0:02:57.9]} 2. Nf3 {[%clk 0:02:58]} 2...
Nc6 {[%clk 0:02:57.8]} 3. d4 {[%clk 0:02:56.7]} 3... cxd4 {[%clk 0:02:58.7]} 4.
Nxd4 {[%clk 0:02:57.6]} 4... e5 {[%clk 0:02:57.7]} 5. Nb5 {[%clk 0:02:57.4]}
5... d6 {[%clk 0:02:57.8]} 6. N1c3 {[%clk 0:02:57.1]} 6... a6 {[%clk 0:02:57.5]}
7. Na3 {[%clk 0:02:56.6]} 7... Be7 {[%clk 0:02:54.5]} 8. Nc4 {[%clk 0:02:55.9]}
8... b5 {[%clk 0:02:53.6]} 9. Ne3 {[%clk 0:02:54.9]} 9... Nf6 {[%clk 0:02:54.3]}
10. Ned5 {[%clk 0:02:53.4]} 10... O-O {[%clk 0:02:49.2]} 11. Be2 {[%clk
0:02:46.3]} 11... Nd4 {[%clk 0:02:47.5]} 12. O-O {[%clk 0:02:41.3]} 12... Nxd5
{[%clk 0:02:29]} 13. Nxd5 {[%clk 0:02:42.2]} 13... Bg5 {[%clk 0:02:29]} 14. c3
{[%clk 0:02:38.6]} 14... Nxe2+ {[%clk 0:02:18]} 15. Qxe2 {[%clk 0:02:38.5]}
15... Be6 {[%clk 0:02:08.2]} 16. Bxg5 {[%clk 0:02:13.5]} 16... Qxg5 {[%clk
0:02:07.9]} 17. Nc7 {[%clk 0:02:14.2]} 17... Bc4 {[%clk 0:02:05.3]} 18. Qe3
{[%clk 0:02:04.4]} 18... Qxe3 {[%clk 0:02:01.4]} 19. fxe3 {[%clk 0:02:05.3]}
19... Ra7 {[%clk 0:02:01.7]} 20. Nd5 {[%clk 0:02:05.8]} 20... Bxf1 {[%clk
0:01:54.4]} 21. Rxf1 {[%clk 0:02:06.7]} 21... Rb7 {[%clk 0:01:53.4]} 22. g4
{[%clk 0:01:52.7]} 22... f6 {[%clk 0:01:47.1]} 23. Rd1 {[%clk 0:01:47.7]} 23...
Kf7 {[%clk 0:01:46.6]} 24. a3 {[%clk 0:01:42]} 24... Ke6 {[%clk 0:01:43.8]} 25.
Kg2 {[%clk 0:01:33.6]} 25... h5 {[%clk 0:01:37]} 26. h3 {[%clk 0:01:26.1]} 26...
hxg4 {[%clk 0:01:35.2]} 27. hxg4 {[%clk 0:01:27]} 27... Rh8 {[%clk 0:01:35.6]}
28. Kg3 {[%clk 0:01:26.1]} 28... a5 {[%clk 0:01:29.8]} 29. Rc1 {[%clk
0:01:20.4]} 29... g6 {[%clk 0:01:19]} 30. Rf1 {[%clk 0:01:14.7]} 30... Rf7
{[%clk 0:01:18.8]} 31. a4 {[%clk 0:01:04.6]} 31... bxa4 {[%clk 0:01:17.1]} 32.
Ra1 {[%clk 0:01:03.4]} 32... f5 {[%clk 0:01:08.7]} 33. g5 {[%clk 0:00:58.9]}
33... Rh5 {[%clk 0:00:56.1]} 34. exf5+ {[%clk 0:00:54.3]} 34... Kxd5 {[%clk
0:00:53.9]} 35. fxg6 {[%clk 0:00:54.6]} 35... Rxg5+ {[%clk 0:00:53.4]} 36. Kh4
{[%clk 0:00:54.1]} 36... Rxg6 {[%clk 0:00:54]} 37. Kh5 {[%clk 0:00:54.3]} 37...
Rg2 {[%clk 0:00:53.8]} 38. Kh6 {[%clk 0:00:53]} 38... Rf3 {[%clk 0:00:52.5]} 39.
Rh1 {[%clk 0:00:53.3]} 39... e4 {[%clk 0:00:51.6]} 40. Kh5 {[%clk 0:00:48.4]}
40... Rf8 {[%clk 0:00:50.2]} 41. Rd1+ {[%clk 0:00:46.8]} 41... Ke5 {[%clk
0:00:50.5]} 0-1